fUSD/lending_fUSD_20260408
["ID","MTS","AMOUNT","RATE_DAILY","PERIOD"]
[420102150,1775676679182,-376.806069,0.0001571,2]
[420102151,1775676679193,-813.297609,0.0001571,2]
[420102152,1775676679209,-628.899072,0.0001571,2]
[420102153,1775676679226,-376.806069,0.0001571,2]
[420102154,1775676679237,-376.806069,0.0001571,2]
[420102155,1775676679248,-151.0,0.0001571,2]
[420102156,1775676679258,-376.806076,0.0001571,2]
[420102157,1775676679269,-151.0,0.0001571,2]
[420102158,1775676679280,-499.519837,0.0001571,2]
[420102159,1775676679291,-499.519837,0.0001571,2]
[420102160,1775676679303,-499.519837,0.0001571,2]
[420102161,1775676679314,-499.519842,0.0001571,2]
[420102162,1775676679324,-151.0,0.0001571,2]
[420102163,1775676679335,-151.0,0.0001571,2]
[420102164,1775676679345,-151.0,0.0001571,2]
[420102165,1775676679355,-151.0,0.0001571,2]
[420102166,1775676679367,-1352.133494,0.0001571,2]
[420102167,1775676679377,-151.0,0.0001571,2]
[420102168,1775676679388,-1352.133494,0.0001571,2]
[420102169,1775676679399,-151.0,0.0001571,2]
[420102170,1775676679409,-1352.133494,0.0001571,2]
[420102171,1775676679419,-1352.133494,0.0001571,2]
[420102172,1775676679430,-151.0,0.0001571,2]
[420102173,1775676679440,-151.0,0.0001571,2]
[420102174,1775676679451,-151.0,0.0001571,2]
[420102175,1775676679461,-151.0,0.0001571,2]
[420102176,1775676679472,-507.88018,0.0001571,2]
[420102177,1775676679483,-1000.0,0.0001572,2]
[420102178,1775676679494,-150.0,0.00015728,2]
[420102179,1775676679505,-261.514915,0.00015729,2]
[420102180,1775676679515,-1000.0,0.00015742,2]
[420102181,1775676679526,-2134.31,0.00015753,2]
[420102182,1775676679535,-1000.0,0.00015766,2]
[420102183,1775676679545,-483.94,0.00015778,2]
[420102184,1775676679556,-483.94,0.00015778,2]
[420102185,1775676679565,-483.94,0.00015778,2]
[420102186,1775676679576,-483.94,0.00015778,2]
[420102187,1775676679587,-483.94,0.00015778,2]
[420102188,1775676679598,-1500.0,0.00015778,2]
[420102189,1775676679608,-1500.0,0.00015778,2]
[420102190,1775676679619,-173.77304499,0.000158,2]
[420102191,1775676679629,-10500.0,0.000158,5]
[420102192,1775676679640,-2000.0,0.000158,2]
[420102193,1775676679650,-2260.09654695,0.00015807,2]
[420102194,1775676679660,-9035.0,0.00015836,2]
[420102195,1775676679670,-2000.0,0.00015836,2]
[420102196,1775676679682,-162.0,0.00015839,2]
[420102197,1775676679693,-1816.0,0.00015842,2]
[420102198,1775676679703,-150.0,0.00015855,2]
[420102199,1775676679713,-200.0,0.00015859,2]
[420102200,1775676679729,-193.9084,0.0001588,2]
[420102201,1775676679740,-1000.0,0.00015882,2]
[420102202,1775676679750,-1816.0,0.00015887,2]
[420102203,1775676679761,-666.0,0.00015889,2]
[420102204,1775676679772,-500.0,0.0001589,2]
[420102205,1775676679782,-500.0,0.0001589,2]
[420102206,1775676679793,-500.0,0.0001589,2]
[420102207,1775676679804,-500.0,0.0001589,2]
[420102208,1775676679814,-500.0,0.0001589,2]
[420102209,1775676679825,-500.0,0.0001589,2]
[420102210,1775676679836,-500.0,0.0001589,2]
[420102211,1775676679846,-500.0,0.0001589,2]
[420102212,1775676679857,-500.0,0.0001589,2]
[420102213,1775676679867,-500.0,0.0001589,2]
[420102214,1775676679878,-500.0,0.0001589,2]
[420102215,1775676679890,-500.0,0.0001589,2]
[420102216,1775676679901,-500.0,0.0001589,2]
[420102217,1775676679913,-500.0,0.0001589,2]
[420102218,1775676679924,-500.0,0.0001589,2]
[420102219,1775676679936,-500.0,0.0001589,2]
[420102220,1775676679946,-500.0,0.0001589,2]
[420102221,1775676679957,-500.0,0.0001589,2]
[420102222,1775676679968,-500.0,0.0001589,2]
[420102223,1775676679979,-500.0,0.0001589,2]
[420102224,1775676679990,-500.0,0.0001589,2]
[420102225,1775676680000,-500.0,0.0001589,2]
[420102226,1775676680012,-2000.0,0.0001589,2]
[420102227,1775676680024,-418.29613778,0.0001589,2]
[420102228,1775676680035,-2500.0,0.0001589,2]
[420102229,1775676680045,-288.04541729,0.0001589,2]
[420102230,1775676680055,-2500.0,0.0001589,2]
[420102231,1775676680066,-2500.0,0.0001589,2]
[420102232,1775676680076,-1068.5,0.00015891,2]
[420102233,1775676680087,-4000.0,0.00015895,2]
[420102234,1775676680098,-24103.83640194,0.000159,3]
[420102235,1775676680108,-10500.0,0.000159,5]
[420102236,1775676680120,-151.3157307,0.000159,2]
[420102237,1775676680130,-151.3157307,0.000159,2]
[420102238,1775676680141,-151.3157307,0.000159,2]
[420102239,1775676680152,-540.97569897,0.000159,2]
[420102240,1775676680163,-538.80518112,0.000159,2]
[420102241,1775676680173,-7523.91385164,0.000159,2]
[420102242,1775676680184,-2000.0,0.000159,2]
[420102243,1775676680194,-1000.0,0.0001591,2]
[420102244,1775676680205,-2108.52370018,0.00015911,2]
[420102245,1775676680216,-2500.0,0.00015911,2]
[420102246,1775676680233,-1816.0,0.00015914,2]
[420102247,1775676680244,-1816.0,0.00015914,2]
[420102248,1775676680255,-1000.0,0.00015927,2]
[420102249,1775676680266,-1651.0,0.00015946,2]
[420102250,1775676680276,-350.0,0.00015948,2]
[420102251,1775676680287,-1000.0,0.0001595,2]
[420102252,1775676680298,-156.8971398,0.00015961,2]
[420102253,1775676680309,-383.03666175,0.00015969,7]
[420102254,1775676680321,-150.0,0.0001598,2]
[420102255,1775676680332,-1000.0,0.00015985,2]
[420102256,1775676680343,-151.0,0.00015997,2]
[420102257,1775676680354,-151.0,0.00015997,2]
[420102258,1775676680366,-3606079.47982926,0.00016,2]
[420102259,1775676680391,-7022.56090723,0.00016,2]
[420102260,1775676680405,-1915558.48698113,0.00016,2]
[420102261,1775676680529,-151.0,0.0001491,2]
[420102262,1775676680541,-507.88018,0.0001491,2]
[420102263,1775676680553,-2000.0,0.000156,2]
[420102264,1775676680564,-1482823.61994883,0.00016,2]
[420102265,1775676680575,-1174291.4647824,0.00016,2]
[420102266,1775676680587,-9999.2826198,0.00016,2]
[420102267,1775676680598,-1071372.58277168,0.00016,2]
[420102268,1775676680934,-507.88018,0.000155,2]
[420102269,1775676680944,-29441.09829713,0.00016,2]
[420102270,1775676680979,-306.069,0.00013425,2]
[420102271,1775676680991,-351.931,0.00013425,2]
[420102272,1775676681001,-151.0,0.000155,2]
[420102273,1775676681010,-813.37382803,0.00016,2]
[420102274,1775676681225,-598.8525724,0.00010845,2]
[420102275,1775676681235,-385.64131728,0.00011846,2]
[420102276,1775676681247,-660.35868272,0.00011846,2]
[420102277,1775676681258,-507.88018,0.00013699,2]
[420102278,1775676681268,-151.0,0.00013699,2]
[420102279,1775676681277,-507.88018,0.00014277,2]
[420102280,1775676681287,-151.0,0.00014277,2]
[420102281,1775676681297,-937.57802788,0.00014846,2]
[420102282,1775676681606,-2112.0,0.000109,2]
[420102283,1775676681637,-567.1714759,0.000109,2]
[420102284,1775676681649,-2446.37741425,0.000109,2]
[420102285,1775676681660,-18670.0332416,0.00011099,2]
[420102286,1775676681669,-151.0,0.00013534,2]
[420102287,1775676681680,-500.0,0.00013698,2]
[420102288,1775676681691,-500.0,0.00013698,2]
[420102289,1775676681701,-500.0,0.00013698,2]
[420102290,1775676681711,-507.88018,0.00013699,2]
[420102291,1775676681722,-151.0,0.00013699,2]
[420102292,1775676681732,-151.0,0.00013699,2]
[420102293,1775676681742,-188.18,0.00014233,2]
[420102294,1775676681752,-507.88018,0.00014277,2]
[420102295,1775676681761,-151.0,0.00014277,2]
[420102296,1775676681772,-188.18,0.00014749,2]
[420102297,1775676681781,-108.42197212,0.00014846,2]
[420102298,1775676681791,-507.88018,0.0001491,2]
[420102299,1775676681807,-151.0,0.0001491,2]
[420102300,1775676681817,-507.88018,0.0001491,2]
[420102301,1775676681828,-151.0,0.0001491,2]
[420102302,1775676681838,-4.59063595,0.00015,2]
[420102303,1775676681852,-1649.33401977,0.00015,2]
[420102304,1775676681862,-2000.0,0.000151,2]
[420102305,1775676681872,-2000.0,0.000152,2]
[420102306,1775676681884,-837.36199631,0.000153,2]
[420102307,1775676681897,-1162.63800369,0.000153,2]
[420102308,1775676681908,-2000.0,0.000154,2]
[420102309,1775676681919,-507.88018,0.000155,2]
[420102310,1775676681932,-219.885142,0.000155,2]
[420102311,1775676681943,-507.88018,0.000155,2]
[420102312,1775676681953,-151.0,0.000155,2]
[420102313,1775676681963,-2000.0,0.000155,2]
[420102314,1775676681973,-507.88018,0.0001571,2]
[420102315,1775676681983,-151.0,0.0001571,2]
[420102316,1775676681994,-507.88018,0.0001571,2]
[420102317,1775676682004,-507.880176,0.0001571,2]
[420102318,1775676682015,-151.0,0.0001571,2]
[420102319,1775676682026,-196.47240595,0.00015857,2]
[420102320,1775676682036,-122371.79710382,0.00016,2]
[420102321,1775676682058,-793.1136,0.00016,2]
[420102322,1775676682070,-462305.06159896,0.00016,2]
[420102323,1775676682083,-7585.45020132,0.00016,2]
[420102324,1775676682117,-500.0,0.00013698,2]
[420102325,1775676682127,-665.57730191,0.00016,2]
[420102326,1775676682140,-46249.356553,0.00016,2]
[420102331,1775676812703,500.0,8.9e-05,3]
[420102332,1775676814794,1000.0,9e-05,3]
[420102346,1775676862389,2600.0,8.9e-05,3]
[420102347,1775676864473,5200.0,9e-05,3]
[420102357,1775677640138,-243.74115373,8.662e-05,2]
[420102358,1775677644556,-956.25884627,8.662e-05,2]
[420102359,1775677644580,-300.0,8.662e-05,2]
[420102360,1775677644603,-250.0,8.663e-05,2]
[420102361,1775677644626,-65.57714466,8.663e-05,2]
[420102362,1775677650897,4700.0,8.9e-05,3]
[420102363,1775677653027,9500.0,9e-05,3]
[420102364,1775677761101,-300.0,8.662e-05,2]
[420102365,1775677761124,-300.0,8.662e-05,2]
[420102366,1775677761149,-250.0,8.663e-05,2]
[420102367,1775677761173,-5141.24885534,8.663e-05,2]
[420102368,1775677761197,-277.115,8.663e-05,2]
[420102369,1775677761222,-222.7793,8.74e-05,2]
[420102370,1775677761245,-2021.75424466,8.74e-05,2]
[420102371,1775677763315,-478.24575534,8.74e-05,2]
[420102372,1775677763341,-250.0,8.743e-05,2]
[420102373,1775677763369,-500.0,8.813e-05,2]
[420102374,1775677763394,-500.0,8.813e-05,2]
[420102375,1775677763419,-151.0,8.837e-05,2]
[420102376,1775677763445,-151.0,8.837e-05,2]
[420102377,1775677763471,-150.0,8.839e-05,2]
[420102378,1775677763501,-500.0,8.839e-05,2]
[420102379,1775677763531,-170.37177602,8.839e-05,2]
[420102380,1775677763560,-500.0,8.839e-05,2]
[420102381,1775677763590,-500.0,8.839e-05,2]
[420102382,1775677763619,-500.0,8.839e-05,2]
[420102383,1775677763649,-500.0,8.839e-05,2]
[420102384,1775677763679,-500.0,8.839e-05,2]
[420102385,1775677763706,-264.66069586,8.839e-05,2]
[420102386,1775677763731,-500.0,8.839e-05,2]
[420102387,1775677765124,-500.0,8.839e-05,2]
[420102388,1775677765221,-500.0,8.839e-05,2]
[420102389,1775677765246,-465.49077134,8.839e-05,2]
[420102390,1775677765269,-341.49367007,8.839e-05,2]
[420102391,1775677765293,-128858.18411245,8.84e-05,2]
[420102392,1775677771083,-38933.19794,8.84e-05,2]
[420102394,1775677832014,-447.6126523,8.74e-05,2]
[420102395,1775677832026,-300.0,8.74e-05,2]
[420102396,1775677832995,-60641.2571477,8.74e-05,2]
[420102397,1775677833004,-500.0,8.813e-05,2]
[420102398,1775677833014,-500.0,8.813e-05,2]
[420102399,1775677833024,-500.0,8.813e-05,2]
[420102400,1775677833034,-500.0,8.813e-05,2]
[420102401,1775677833043,-250.0,8.826e-05,2]
[420102402,1775677833053,-1200.0,8.839e-05,2]
[420102403,1775677833063,-18892.2050002,8.84e-05,2]
[420102404,1775677833075,-31354.50590214,8.84e-05,2]
[420102405,1775677833087,-11168.81144696,8.84e-05,2]
[420102406,1775677833099,-1309.45761818,8.84e-05,2]
[420102407,1775677833111,-4625.22215064,8.84e-05,2]
[420102408,1775677833123,-2073.04999997,8.84e-05,2]
[420102409,1775677833135,-1000.0,8.84e-05,2]
[420102410,1775677833147,-1912.81522465,8.84e-05,2]
[420102411,1775677833175,-624.35787928,8.84e-05,2]
[420102412,1775677833186,-37127.23233239,8.84e-05,2]
[420102413,1775677833198,-4434.76220405,8.84e-05,2]
[420102414,1775677833209,-1782.3873477,8.84e-05,2]
[420102415,1775677833221,-397.88266777,8.84e-05,2]
[420102416,1775677833233,-7339.2062754,8.84e-05,2]
[420102419,1775677838210,-1208166.72189822,8.84e-05,2]
[420102420,1775677838219,-28668.4034,8.996e-05,2]
[420102421,1775677838229,-9999.99,8.996e-05,2]
[420102422,1775677838252,-150.99,8.996e-05,2]
[420102423,1775677838263,-150.99,8.996e-05,2]
[420102424,1775677838273,-999.99,8.996e-05,2]
[420102425,1775677838283,-299.99,8.996e-05,2]
[420102426,1775677838293,-1000.0,9.361e-05,2]
[420102427,1775677838304,-1000.0,9.361e-05,2]
[420102428,1775677838315,-1000.0,9.361e-05,2]
[420102429,1775677838325,-1000.0,9.361e-05,2]
[420102430,1775677838334,-401.0,9.398e-05,2]
[420102431,1775677838343,-1500.0,9.41e-05,2]
[420102432,1775677838353,-1927.0,9.417e-05,2]
[420102433,1775677838363,-300.0,9.435e-05,2]
[420102434,1775677838373,-1109.0,9.454e-05,2]
[420102435,1775677838383,-1852.42,9.492e-05,2]
[420102436,1775677838393,-420.0,9.528e-05,2]
[420102437,1775677838403,-250.0,9.528e-05,2]
[420102438,1775677838413,-153.06,9.539e-05,2]
[420102439,1775677838423,-1049.14,9.578e-05,2]
[420102440,1775677838432,-150.0,9.6e-05,2]
[420102441,1775677838442,-15652.05,9.606e-05,2]
[420102442,1775677838452,-250.0,9.694e-05,2]
[420102443,1775677838462,-255.0,9.723e-05,2]
[420102444,1775677838471,-1609.0,9.723e-05,2]
[420102445,1775677838482,-1680.0,9.723e-05,2]
[420102446,1775677838493,-1806.0,9.743e-05,2]
[420102447,1775677838503,-974.0,9.762e-05,2]
[420102448,1775677838513,-150.0,9.826e-05,2]
[420102449,1775677838524,-1500.0,9.908e-05,2]
[420102450,1775677838534,-1500.0,9.908e-05,2]
[420102451,1775677838544,-1500.0,9.908e-05,2]
[420102452,1775677838553,-1500.0,9.908e-05,2]
[420102453,1775677838563,-1064.96,0.0001,2]
[420102454,1775677838573,-151.0,0.0001,2]
[420102456,1775677838583,-151.0,0.0001,2]
[420102458,1775677838593,-151.0,0.0001,2]
[420102460,1775677838602,-151.0,0.0001,2]
[420102462,1775677838612,-151.0,0.0001,2]
[420102464,1775677838622,-151.0,0.0001,2]
[420102465,1775677838632,-500.0,0.0001,2]
[420102467,1775677838641,-151.0,0.0001,2]
[420102469,1775677838650,-500.0,0.0001,2]
[420102471,1775677838659,-151.0,0.0001,2]
[420102473,1775677838669,-500.0,0.0001,2]
[420102475,1775677838679,-151.0,0.0001,2]
[420102477,1775677838689,-500.0,0.0001,2]
[420102480,1775677838699,-151.0,0.0001,2]
[420102482,1775677838710,-500.0,0.0001,2]
[420102484,1775677838720,-151.0,0.0001,2]
[420102486,1775677838729,-151.0,0.0001,2]
[420102488,1775677838740,-151.0,0.0001,2]
[420102490,1775677838756,-151.0,0.0001,2]
[420102492,1775677838766,-151.0,0.0001,2]
[420102494,1775677838776,-200.0,0.0001,2]
[420102496,1775677838786,-151.0,0.0001,2]
[420102498,1775677838796,-151.0,0.0001,2]
[420102500,1775677838806,-151.0,0.0001,2]
[420102502,1775677838816,-151.0,0.0001,2]
[420102504,1775677838826,-151.0,0.0001,2]
[420102506,1775677838837,-151.0,0.0001,2]
[420102509,1775677838847,-1199.20597015,0.0001,2]
[420102511,1775677838857,-151.0,0.0001,2]
[420102513,1775677838867,-151.0,0.0001,2]
[420102515,1775677838877,-151.0,0.0001,2]
[420102517,1775677838887,-151.0,0.0001,2]
[420102519,1775677838897,-151.0,0.0001,2]
[420102521,1775677838907,-155.45941456,0.0001,2]
[420102523,1775677838917,-151.0,0.0001,2]
[420102524,1775677838927,-552.25810328,0.0001,2]
[420102526,1775677838937,-634.23081963,0.0001,2]
[420102528,1775677838946,-500.0,0.00010011,3]
[420102529,1775677838956,-153.06,0.00010136,2]
[420102530,1775677838966,-1064.96,0.00010274,2]
[420102531,1775677838976,-229.75,0.000103,2]
[420102532,1775677838987,-1517.45482461,0.00010456,2]
[420102533,1775677838997,-886.55121869,0.00010456,2]
[420102534,1775677839007,-2000.0,0.00010456,2]
[420102535,1775677839017,-2000.0,0.00010456,2]
[420102536,1775677839027,-514.0,0.00010481,2]
[420102537,1775677839038,-1064.96,0.00010548,2]
[420102538,1775677839049,-200.0,0.00010548,2]
[420102539,1775677839058,-1243.57659104,0.00010548,2]
[420102540,1775677839068,-433.0,0.00010695,2]
[420102541,1775677839078,-2351.0,0.00010695,2]
[420102542,1775677839088,-153.06,0.00010732,2]
[420102543,1775677839097,-250.0,0.00010802,2]
[420102544,1775677839107,-1064.96,0.00010822,2]
[420102545,1775677839116,-14300.0,0.000109,3]
[420102546,1775677839126,-500.0,0.00010959,2]
[420102547,1775677839137,-1994.4,0.00010959,2]
[420102548,1775677839146,-150.0,0.00010959,2]
[420102549,1775677839156,-172.9215,0.00011,2]
[420102550,1775677839166,-2500.0,0.00011004,2]
[420102551,1775677839175,-2500.0,0.00011004,2]
[420102552,1775677839185,-151.502,0.00011087,2]
[420102553,1775677839195,-1064.96,0.00011096,2]
[420102554,1775677839204,-200.0,0.00011096,2]
[420102555,1775677839213,-1289.58892491,0.00011096,2]
[420102556,1775677839223,-55566.6159483,0.00011099,2]
[420102557,1775677839233,-55566.61594827,0.00011099,2]
[420102558,1775677839242,-55566.61594827,0.00011099,2]
[420102559,1775677839252,-24831.56772012,0.00011099,2]
[420102560,1775677839262,-24831.56772012,0.00011197,2]
[420102561,1775677839272,-55566.61594827,0.00011231,2]
[420102562,1775677839282,-153.06,0.00011328,2]
[420102563,1775677839291,-1064.96,0.0001137,2]
[420102564,1775677839301,-233.66702618,0.00011552,2]
[420102565,1775677839310,-713.60218691,0.00011552,2]
[420102566,1775677839319,-1064.96,0.00011644,2]
[420102567,1775677839329,-200.0,0.00011644,2]
[420102568,1775677839338,-1337.30371513,0.00011644,2]
[420102569,1775677839347,-578.20924308,0.00011718,2]
[420102570,1775677839356,-181.08010149,0.00011718,2]
[420102571,1775677839366,-1235.18214925,0.00011718,2]
[420102572,1775677839375,-623.58710448,0.00011718,2]
[420102573,1775677839384,-8260.13072239,0.00011718,2]
[420102574,1775677839394,-500.0,0.00011718,2]
[420102575,1775677839404,-200.0,0.00011718,2]
[420102576,1775677839413,-151.0,0.00011718,2]
[420102577,1775677839423,-151.0,0.00011718,2]
[420102578,1775677839433,-743.50770149,0.00011718,2]
[420102579,1775677839444,-158.44511549,0.00011718,2]
[420102580,1775677839454,-181.08010149,0.00011718,2]
[420102581,1775677839464,-1500.0,0.00011718,2]
[420102582,1775677839474,-1500.0,0.00011718,2]
[420102583,1775677839484,-181.08010149,0.00011718,2]
[420102584,1775677839494,-1500.0,0.00011718,2]
[420102585,1775677839504,-1500.0,0.00011718,2]
[420102586,1775677839515,-1500.0,0.00011718,2]
[420102587,1775677839526,-1500.0,0.00011718,2]
[420102588,1775677839535,-599.60298507,0.00011718,2]
[420102589,1775677839546,-1500.0,0.00011718,2]
[420102590,1775677839556,-1532.75885711,0.00011718,2]
[420102591,1775677839566,-285.62441693,0.00011718,2]
[420102592,1775677839576,-160.62835242,0.00011718,2]
[420102593,1775677839586,-170.0,0.00011718,2]
[420102594,1775677839597,-170.0,0.00011718,2]
[420102595,1775677839607,-170.0,0.00011718,2]
[420102596,1775677839618,-170.0,0.00011718,2]
[420102597,1775677839629,-170.0,0.00011718,2]
[420102598,1775677839640,-170.0,0.00011718,2]
[420102599,1775677839650,-170.0,0.00011718,2]
[420102600,1775677839661,-170.0,0.00011718,2]
[420102601,1775677839670,-174.61919141,0.00011718,2]
[420102602,1775677839680,-151.0,0.00011718,2]
[420102603,1775677839689,-170.0,0.00011718,2]
[420102609,1775677840233,-170.0,0.00011718,2]
[420102610,1775677840244,-170.0,0.00011718,2]
[420102611,1775677840255,-170.0,0.00011718,2]
[420102612,1775677840264,-170.0,0.00011718,2]
[420102613,1775677840274,-170.0,0.00011718,2]
[420102614,1775677840283,-170.0,0.00011718,2]
[420102615,1775677840293,-1000.0,0.00011748,2]
[420102616,1775677840303,-736.0,0.00011765,2]
[420102617,1775677840313,-3292.0,0.00011765,2]
[420102618,1775677840323,-8565.75555911,0.00011773,2]
[420102619,1775677840332,-500.0,0.00011773,2]
[420102620,1775677840342,-151.0,0.00011773,2]
[420102621,1775677840351,-7457.27528911,0.00011826,2]
[420102622,1775677840361,-8882.6885148,0.00011828,2]
[420102623,1775677840371,-500.0,0.00011828,2]
[420102624,1775677840380,-151.0,0.00011828,2]
[420102625,1775677840390,-6805.0,0.00011863,2]
[420102626,1775677840400,-500.0,0.00011873,2]
[420102627,1775677840409,-500.0,0.00011873,2]
[420102628,1775677840419,-500.0,0.00011873,2]
[420102629,1775677840428,-501.16240007,0.00011873,2]
[420102630,1775677840438,-227.40550479,0.00011873,2]
[420102631,1775677840448,-500.0,0.00011873,2]
[420102632,1775677840457,-500.0,0.00011873,2]
[420102633,1775677840466,-7419.93871538,0.00011883,2]
[420102634,1775677840476,-500.0,0.00011883,2]
[420102635,1775677840486,-151.0,0.00011883,2]
[420102636,1775677840495,-151.0,0.00011892,2]
[420102637,1775677840505,-1065.00654162,0.00011918,2]
[420102638,1775677840514,-153.06,0.00011924,2]
[420102639,1775677840523,-150.0,0.00011934,2]
[420102640,1775677840533,-500.0,0.00011938,2]
[420102641,1775677840542,-151.0,0.00011938,2]
[420102642,1775677840552,-154.43059397,0.00011962,2]
[420102643,1775677840562,-24831.56772012,0.00011964,2]
[420102644,1775677840572,-500.0,0.00011993,2]
[420102645,1775677840583,-151.0,0.00011993,2]
[420102646,1775677840592,-55566.61594827,0.00012009,2]
[420102647,1775677840602,-500.0,0.00012048,2]
[420102648,1775677840613,-151.0,0.00012048,2]
[420102649,1775677840623,-500.0,0.00012103,2]
[420102650,1775677840632,-151.0,0.00012103,2]
[420102651,1775677840641,-500.0,0.00012158,2]
[420102652,1775677840651,-151.0,0.00012158,2]
[420102653,1775677840661,-203.17613442,0.00012165,2]
[420102654,1775677840670,-200.0,0.00012192,2]
[420102655,1775677840679,-1386.78395259,0.00012192,2]
[420102656,1775677840688,-500.0,0.00012213,2]
[420102657,1775677840698,-151.0,0.00012213,2]
[420102658,1775677840708,-187.78006525,0.00012266,2]
[420102659,1775677840718,-1280.88388878,0.00012266,2]
[420102660,1775677840727,-200.0,0.00012266,2]
[420102661,1775677840737,-771.01748645,0.00012266,2]
[420102662,1775677840747,-591.41950389,0.00012266,2]
[420102663,1775677840756,-181.08010149,0.00012266,2]
[420102664,1775677840766,-500.0,0.00012268,2]
[420102665,1775677840775,-151.0,0.00012268,2]
[420102666,1775677840785,-500.0,0.00012323,2]
[420102667,1775677840795,-151.0,0.00012323,2]
[420102668,1775677840804,-500.0,0.00012378,2]
[420102669,1775677840814,-151.0,0.00012378,2]
[420102670,1775677840823,-552.25810328,0.00012398,2]
[420102671,1775677840833,-199.3457,0.000124,2]
[420102672,1775677840843,-501.73893264,0.00012421,2]
[420102673,1775677840853,-1000.0,0.00012421,2]
[420102674,1775677840863,-1347.0,0.00012432,2]
[420102675,1775677840873,-622.0,0.00012432,2]
[420102676,1775677840882,-1046.0,0.00012432,2]
[420102677,1775677840892,-3524.0,0.00012432,2]
[420102678,1775677840902,-1264.0,0.00012432,2]
[420102679,1775677840912,-150.0,0.00012432,2]
[420102680,1775677840921,-1217.0,0.00012432,2]
[420102681,1775677840931,-926.0,0.00012432,2]
[420102682,1775677840941,-415.0,0.00012432,2]
[420102683,1775677840951,-6022.0,0.00012432,2]
[420102684,1775677840960,-500.0,0.00012433,2]
[420102685,1775677840970,-151.0,0.00012433,2]
[420102686,1775677840979,-400.53195677,0.00012459,2]
[420102687,1775677840988,-500.0,0.00012488,2]
[420102688,1775677840998,-151.0,0.00012488,2]
[420102689,1775677841008,-153.06,0.00012521,2]
[420102690,1775677841018,-160.0,0.00012531,2]
[420102691,1775677841027,-1623.272022,0.00012531,2]
[420102692,1775677841037,-3086.544044,0.00012531,2]
[420102693,1775677841046,-160.0,0.00012557,2]
[420102694,1775677841055,-2724.518689,0.00012557,2]
[420102695,1775677841065,-5289.037378,0.00012557,2]
[420102696,1775677841074,-1000.0,0.00012666,2]
[420102697,1775677841084,-24831.56772012,0.00012732,2]
[420102698,1775677841094,-200.0,0.0001274,2]
[420102699,1775677841104,-615.97353812,0.0001274,2]
[420102700,1775677841113,-55566.61594827,0.00012787,2]
[420102701,1775677841123,-194.72792766,0.00012814,2]
[420102702,1775677841132,-1328.27659266,0.00012814,2]
[420102703,1775677841142,-200.0,0.00012814,2]
[420102704,1775677841151,-187.78006525,0.00012814,2]
[420102705,1775677841161,-7457.27528911,0.00012844,2]
[420102706,1775677841170,-1221.0,0.0001288,5]
[420102707,1775677841180,-974.0,0.0001288,5]
[420102708,1775677841190,-160.0,0.00012888,2]
[420102709,1775677841199,-997.959971,0.00012888,2]
[420102710,1775677841209,-1835.919942,0.00012888,2]
[420102711,1775677841219,-160.0,0.00012888,2]
[420102712,1775677841229,-654.451446,0.00012888,2]
[420102713,1775677841238,-1148.902893,0.00012888,2]
[420102714,1775677841248,-19100.0,0.000129,4]
[420102715,1775677841258,-1252.0,0.0001294,2]
[420102716,1775677841268,-4609.0,0.00012941,2]
[420102717,1775677841277,-1500.0,0.00012968,2]
[420102718,1775677841287,-250.0,0.00013,2]
[420102719,1775677841296,-229.75,0.00013091,2]
[420102720,1775677841306,-501.0,0.000131,2]